Cogmind - Beta 16.1 @@@ ROGUE MODE // 2026.04.08 @ 19:07:55 Player: Lyft Result: Destroyed by D-53 Grenadier with Mini Grenade Launcher Performance ------------- Evolutions (0) 0 Regions Visited (2) 400 Robots Destroyed (31) 155 Value Destroyed (444) 444 Prototype IDs (0) 0 Alien Tech Used (0) 0 Bonus (0) 0 TOTAL SCORE: 999 Bonus ------- None Cogmind --------- Core Integrity 0/250 Matter 300/300 Energy 100/100 System Corruption 0% Temperature Cool (0) Movement Core (1350) Ox26 Location -10/Mines Parts ------- > --- POWER (1) -------- (None) > --- PROPULSION (2) --- (None) > --- UTILITY (2) ------ Huge Storage Unit > --- WEAPON (2) ------- (None) > --- INVENTORY (25) --- Ion Engine Light Treads Light Treads Light Treads Compact Wheel Structural Scanner Seismic Detector Transport Network Coupler Hacking Suite Heavy EM Pulse Gun Heavy EM Pulse Gun Heavy EM Pulse Gun Grenade Launcher Rocket Launcher Mining Laser Plasma Cutter Peak State ------------ > --- POWER ------------ Ion Engine > --- PROPULSION ------- Light Treads Compact Wheel > --- UTILITY ---------- Heat Sink Huge Storage Unit > --- WEAPON ----------- Heavy EM Pulse Gun Light Cannon > --- INVENTORY -------- Ion Engine Light Treads Light Treads Light Treads Compact Wheel Structural Scanner Seismic Detector Transport Network Coupler Hacking Suite Heavy EM Pulse Gun Heavy EM Pulse Gun Heavy EM Pulse Gun Grenade Launcher Mining Laser Plasma Cutter [Rating: 10] Favorites ----------- Power Ion Engine Engine Ion Engine Propulsion Light Treads Treads Light Treads Leg Aluminum Leg Wheel Compact Wheel Utility Huge Storage Unit Device Heat Sink Storage Huge Storage Unit Protection Light Armor Plating Weapon Small Laser Energy Gun Small Laser Ballistic Gun Light Assault Rifle Ballistic Cannon Light Cannon Special Weapon Mining Laser Build | -11 -10 -10 ------- Run | Yrd Mat Min Slots Evolved . | . . . Power . | . . . Propulsion . | . . . Utility . | . . . Weapon . | . . . Parts Attached 19 | 3 16 . Power 1 | . 1 . Engine 1 | . 1 . Core . | . . . Reactor . | . . . Propulsion 5 | 2 3 . Treads 3 | 1 2 . Leg . | . . . Wheel 2 | 1 1 . Hover . | . . . Flight . | . . . Utility 7 | 1 6 . Device 3 | 1 2 . Storage 3 | . 3 . Processor . | . . . Hackware . | . . . Protection 1 | . 1 . Artifact . | . . . Weapon 6 | . 6 . Energy Gun 3 | . 3 . Energy Cannon . | . . . Ballistic Gun 1 | . 1 . Ballistic Cannon 1 | . 1 . Launcher . | . . . Special Weapon 1 | . 1 . Impact Weapon . | . . . Slashing Weapon . | . . . Piercing Weapon . | . . . Special Melee Weapon . | . . . Unidentified Prototypes . | . . . Parts Lost 8 | . 2 6 Power 1 | . . 1 Propulsion 2 | . . 2 Utility 2 | . 1 1 Weapon 3 | . 1 2 Highest Loss Streak 6 | . 1 6 To Critical Strikes . | . . . Average Backups 11 | 4 10 15 Power . | 1 . 1 Propulsion 3 | 2 3 4 Utility 2 | . 1 4 Weapon 4 | 1 3 5 Tool/Special . | . . . Unused Backups 19 | . 7 12 Power 4 | . 3 1 Propulsion 2 | . . 2 Utility 4 | . 2 2 Weapon 7 | . 1 6 Tool/Special 2 | . 1 1 Average Slot Usage (%) 98 | . 98 100 Engine 14 | . 14 14 Treads 18 | . 19 14 Wheel 9 | . 8 14 Device 12 | . 12 14 Storage 14 | . 14 14 Energy Gun 17 | . 17 14 Ballistic Cannon 7 | . 6 14 Special Weapon 2 | . 3 . Peak Build Rating 10 | 7 10 10 Average Rating 8 | 6 8 9 On Entrance 7 | 6 7 10 Avg Prop Armor Cover (%) 12 | 14 12 11 Naked Turns . | . . . Heaviest Build 92 | 11 92 92 Greatest Support 40 | 20 40 16 Greatest Overweight (x) 29 | . 5 29 Average Overweight (x) 2 | . 2 5 Largest Inventory Capacity 25 | 8 25 25 Average Capacity 16 | 8 16 25 Most Carried 16 | 6 16 16 Average Carried 11 | 4 10 15 Final Capacity 25 | 8 25 25 Final Carried 16 | 5 15 16 Class Distribution -------------------- 100% | Mutant Dominant Class ---------------- Mutant | -10/Materials Mutant | -10/Mines Resources | -11 -10 -10 ----------- Run | Yrd Mat Min Matter Collected 628 | 230 366 32 Remotely . | . . . Salvage Created 980 | 164 785 31 Parts 59 | 15 41 3 Haulers Intercepted 2 | . 2 . Recyclers Shooed 4 | 1 3 . Parts Field Recycled . | . . . Retrieved Matter . | . . . Parts Self-Destructed . | . . . Prevented . | . . . Parts Restored . | . . . Kills | -11 -10 -10 ------- Run | Yrd Mat Min Combat Hostiles Destroyed 15 | . 12 3 Guns 8 | . 8 . Cannons 5 | . 2 3 AOE 2 | . 2 . Classes Destroyed 9 | 2 7 . Worker 1 | . 1 . Builder 1 | . 1 . Tunneler 5 | 5 . . Hauler 2 | . 2 . Recycler 4 | 1 3 . Operator 1 | . 1 . Watcher 2 | . 2 . Swarmer 9 | . 6 3 Grunt 6 | . 6 . Best Kill Streak 3 | 3 3 3 Combat Bots Only 3 | . 3 3 Max Kills in Single Turn 2 | 2 2 1 Gunslinging . | . . . Exploded 1 | . 1 . Melee . | . . . Uniques/NPCs Destroyed . | . . . Combat | -11 -10 -10 -------- Run | Yrd Mat Min Hostile Shots Fired 93 | . 71 22 Missed 22 | . 18 4 Hits 71 | . 53 18 Projectile 71 | . 53 18 AOE 11 | . . 11 Damage Taken 1037 | . 559 478 Core 265 | . 69 196 Absorbed by Shields . | . . . Core Remaining (%) 100 | 100 . . Volleys Fired 108 | 17 83 8 Largest 2 | 2 2 2 Hottest 145 | 80 145 75 Shots Fired 196 | 34 146 16 Gun 142 | 34 100 8 Cannon 37 | . 29 8 Launcher . | . . . Special 17 | . 17 . Kinetic 37 | . 29 8 Thermal 121 | 34 87 . Explosive . | . . . Electromagnetic 38 | . 30 8 Robot Hit Streak 5 | 5 4 2 Robot Miss Streak 6 | 6 5 6 Penetration Max . | . . . Secondary Targets 1 | . 1 . Max Gunslinging Chain 1 | . 1 . Shots Hit Robots 81 | 16 60 5 Core Hits 36 | 7 27 2 Critical Kills . | . . . Critical Parts Destroyed . | . . . Critical Strikes 2 | . . 2 Blast 2 | . . 2 Melee Attacks . | . . . Impact . | . . . Slashing . | . . . Piercing . | . . . Sneak Attacks . | . . . Combat Hostiles . | . . . Follow-up Attacks . | . . . Damage Inflicted 1232 | 181 958 93 Guns 793 | 181 599 13 Cannons 345 | . 265 80 Explosions 94 | . 94 . Melee . | . . . Ramming . | . . . Kinetic 345 | . 265 80 Thermal 629 | 181 448 . Explosive . | . . . Electromagnetic 258 | . 245 13 Impact . | . . . Slashing . | . . . Piercing . | . . . Highest Corruption . | . . . Average Corruption . | . . . Corruption Purged . | . . . Corruption Blocked . | . . . Overload Shots . | . . . Overflow Damage 9 | . 7 2 Projectiles 9 | . 7 2 Explosions . | . . . Melee . | . . . Knockbacks 2 | . 2 . Impact . | . . . Kinetic 2 | . 2 . Secondary . | . . . Self-Inflicted Damage 37 | . 37 . Shots 1 | . 1 . Rammed . | . . . Targets Rammed . | . . . Kicked . | . . . Crushed . | . . . Highest Temperature 317 | 90 317 . Average Temperature 57 | 30 62 . Received Heat Transfer 204 | . 204 . Effects 1 | . 1 . Energy Bleed 1 | . 1 . Siege Activations . | . . . Martial Activations . | . . . Shielding Activations . | . . . Robots Disrupted . | . . . Combat Hostiles . | . . . Robots Corrupted . | . . . Combat Hostiles . | . . . Parts Fried 1 | . 1 . Impact Corruptions . | . . . Robots Melted . | . . . Combat Hostiles . | . . . Parts Melted . | . . . Heat Transferred 1325 | 425 900 . Parts Sabotaged . | . . . Parts Stolen . | . . . Parts Stripped . | . . . Power Chain Reactions 2 | . 2 . Alert | -11 -10 -10 ------- Run | Yrd Mat Min Maximum Alert Level . | . . . Low Security (%) 100 | 100 100 100 Level 1 . | . . . Level 2 . | . . . Level 3 . | . . . Level 4 . | . . . Level 5 . | . . . High Security . | . . . Max Security . | . . . Peak Influence 142 | 10 142 71 Initial 52 | . . 52 Average 35 | 1 38 30 Influence Increases 626 | 30 515 81 Destroy 0b10 Robot/C 300 | . 240 60 Destroy 0b10 Robot/NC 80 | 30 50 . Destroy Leader 78 | . 68 10 Allied During Kill 11 | . . 11 Successful Hack 25 | . 25 . Select Force Hacks 30 | . 30 . Disable Machine 30 | . 30 . Destroy Structure 27 | . 27 . Lose Combat Pursuer 45 | . 45 . Influence Decreases 626 | 30 381 215 Entered New Map 82 | . . 82 Time Decay 523 | 30 361 132 Lost Part 20 | . 20 . Lost Ally 1 | . . 1 Squads Dispatched 3 | . 3 . Investigation 1 | . 1 . Extermination . | . . . Reinforcement 2 | . 2 . Assault . | . . . Garrison . | . . . Intercept . | . . . Searches Triggered . | . . . Construction Impeded . | . . . Haulers Reinforced . | . . . Active Scanning Responses . | . . . Cargo Convoy Interrupts . | . . . Stealth | -11 -10 -10 --------- Run | Yrd Mat Min Distress Signals 2 | . 2 . Communications Jammed . | . . . Distress Signals . | . . . Times Spotted 27 | . 22 5 Peak Tracking Total 4 | . 4 3 Tactical Retreats 1 | . 1 . Traps | -11 -10 -10 ------- Run | Yrd Mat Min Traps Triggered . | . . . Indirectly . | . . . Trap Hack Attempts . | . . . Triggered . | . . . Disarmed . | . . . Reprogrammed . | . . . Reused . | . . . Traps Extracted . | . . . Installed . | . . . Triggered . | . . . Machines | -11 -10 -10 ---------- Run | Yrd Mat Min Machines Disabled 2 | . 2 . Max in Single Turn 1 | . 1 . Machines Repaired . | . . . Machines Dismantled . | . . . Machines Sabotaged . | . . . Overloaded Fab Kills . | . . . Hacking | -11 -10 -10 --------- Run | Yrd Mat Min Machines Accessed 9 | . 9 . Terminals 7 | . 7 . Fabricators . | . . . Repair Stations . | . . . Recycling Units 2 | . 2 . Scanalyzers . | . . . Garrison Access . | . . . Total Hacks 26 | . 26 . Successful 14 | . 14 . Failed 12 | . 12 . Catastrophic 1 | . 1 . Database Lockouts . | . . . Manual 17 | . 17 . Terminals 22 | . 22 . Fabricators . | . . . Repair Stations . | . . . Recycling Units 4 | . 4 . Scanalyzers . | . . . Garrison Access . | . . . Terminal Hacks 4 | . 4 . Robot Analysis 3 | . 3 . Locate Traps 1 | . 1 . Fabricator Hacks . | . . . Repair Station Hacks . | . . . Recycling Unit Hacks 3 | . 3 . Report Inventory 2 | . 2 . Retrieve Components 1 | . 1 . Scanalyzer . | . . . Garrison Access Hacks . | . . . Unauthorized Hacks 7 | . 7 . Terminals 6 | . 6 . Assimilate 1 | . 1 . Botnet 2 | . 2 . Operators 1 | . 1 . Skim 2 | . 2 . Fabricators . | . . . Repair Stations . | . . . Recycling Units 1 | . 1 . Tunnel 1 | . 1 . Scanalyzers . | . . . Garrison Access . | . . . Data Cores Recovered . | . . . Used . | . . . Hacking Detections 6 | . 6 . Full Trace Events . | . . . Feedback Events . | . . . Feedback Blocked . | . . . Robot Schematics Acquired . | . . . Robots Built . | . . . Authchips . | . . . Time . | . . . Total Robot Build Rating . | . . . Part Schematics Acquired . | . . . Parts Built . | . . . Authchips . | . . . Time . | . . . Total Part Build Rating . | . . . Part Studies Acquired . | . . . Parts Repaired . | . . . Time . | . . . Parts Recycled . | . . . Recycled Matter . | . . . Retrieved Matter . | . . . Retrieved Components 7 | . 7 . Parts Scanalyzed . | . . . Part Schematics Acquired . | . . . Parts Damaged . | . . . Bothacking | -11 -10 -10 ------------ Run | Yrd Mat Min Used RIF Installer . | . . . Robots Hacked . | . . . Non-combat . | . . . Combat . | . . . Robot Hacks Applied . | . . . Relay Couplers Released . | . . . Fabnet Peak Effective % . | . . . Robots Rewired . | . . . Allies Hacked . | . . . Hacks Repelled . | . . . Allies | -11 -10 -10 -------- Run | Yrd Mat Min Total Allies 3 | . . 3 Largest Group 3 | . . 3 Highest-Rated Group 40 | . . 40 Highest-Rated Ally 16 | . . 16 Total Orders . | . . . Ally Attacks 5 | . . 5 Total Damage 50 | . . 50 Kills . | . . . Allies Corrupted . | . . . Allies Melted . | . . . Intel | -11 -10 -10 ------- Run | Yrd Mat Min Active Infowar (turns) 1004 | 41 963 . Structural 666 | . 666 . Seismic 338 | 41 297 . Robot Analysis Total 3 | . 3 . Derelict Logs Recovered 1 | . . 1 Drone Launches . | . . . Drone Recoveries . | . . . Exploration | -11 -10 -10 ------------- Run | Yrd Mat Min Turns Passed 1917 | 131 1492 294 Spaces Moved 831 | 67 631 133 Core 1 | . . 1 Treads 211 | . 211 . Legs 14 | 14 . . Wheels 605 | 53 420 132 Hover . | . . . Flight . | . . . Fastest Speed 100 | 100 100 175 Average Speed 157 | 104 156 184 Slowest Speed 1500 | 120 320 1500 Overloaded Moves . | . . . Propulsion Burnouts . | . . . Robots Hopped . | . . . Potential Cave-ins . | . . . Cave-ins Triggered . | . . . Exploration Rate (%) 40 | 5 92 23 Regions Visited 2 Branch Regions 1 Pre-discovered Areas 2 | . 1 1 Known Exits Taken . | . . . Unknown Exits Taken 2 | 1 1 . Scrap Searched . | . . . Spaces Dug 17 | . 17 . Terrain Destroyed 27 | . 27 . Melee . | . . . Projectile 17 | . 17 . AOE 10 | . 10 . Terrain Rammed . | . . . Walls Destroyed . | . . . Machines Disabled . | . . . Actions | -11 -10 -10 --------- Run | Yrd Mat Min Total 1218 | 95 951 172 Wait 214 | 5 179 30 Move 829 | 66 630 133 Hop . | . . . Pick Up 22 | 2 19 1 Fast Attach 1 | . 1 . Attach 6 | 3 3 . Detach 1 | . 1 . Swap 22 | . 22 . Drop 15 | 2 13 . Fire 108 | 17 83 8 Melee . | . . . Ram . | . . . Kick . | . . . Crush . | . . . Escape Stasis . | . . . Rewire . | . . . Trap . | . . . Miscellaneous . | . . . Route ------- -11/Scrapyard -10/Materials (discovered 5 exits: [*Mat x3] / [*Min x2]) -10/Mines (discovered 2 exits: [*Mat] / [*Sub]) History --------- Turn | Location | Event 16 | -11/Scrapyard | Discovered new exit (range 3) 132 | -11/Scrapyard | Entered Materials 225 | -10/Materials | Discovered new exit (range 13) 309 | -10/Materials | Build established: Mutant 388 | -10/Materials | Discovered new exit (range 6) 872 | -10/Materials | Discovered new exit (range 8) 1315 | -10/Materials | Discovered new exit (range 14) 1408 | -10/Materials | Discovered new exit (range 10) 1624 | -10/Materials | Entered Mines 1633 | -10/Mines | Assisted by bots powering up and referring to "LRC-V3" 1684 | -10/Mines | Received a Rocket Launcher from a helpful Derelict 1794 | -10/Mines | Discovered new exit (range 8) 1830 | -10/Mines | Discovered new exit (range 5) 1890 | -10/Mines | Assembled infested the area 1915 | -10/Mines | Core integrity fell below 50% 1918 | -10/Mines | Core integrity fell below 20% 1918 | -10/Mines | Destroyed by D-53 Grenadier with Mini Grenade Launcher Last Messages --------------- 01851_ U-05 Engineer lays Concrete. 01852_ T-07 Excavator is excavating. 01853_ U-05 Engineer builds a Wall. 01890_ ALERT: Infestation in the mines, dispatching Demolisher response squad. 01902_ C-45 Heavy ARC bursts open, deploying its payload. 01902_ D-53 Grenadier unfolds itself. 01904_ Mercenary 1a destroyed. 01908_ D-53 Grenadier suffers critical hit (Burn). 01908_ Trooper 1a destroyed. 01908_ Trooper 1b destroyed. 01910_ Hvy. EM Pulse Gun destroyed. 01910_ Com. Wheel destroyed. 01910_ Lgt. Treads destroyed. 01912_ Heat Sink destroyed. 01913_ The unstable cave ceiling collapses. 01914_ Lgt. Cannon destroyed. 01914_ Ion Engine destroyed. Map ----- +----------------------------------------------------+ | ?????????????????????????????????????????????????? | | ?????????????????????????????????????????????????? | | ?????????????????????????????????????????????????? | | ?????????????????????????????????????????????????? | | ?????????????????????????????????????????????????? | | ?????????????????????????????????????????????????? | | ?????????????????????????????????????????????????? | | ?????????????????????????????????????????????????? | | ?????????????????????????????????????????????????? | | ?????????????????????????????????????????????????? | | ?????????????????????????????????????????????????? | | ?????????????????????????????????????????????????? | | ?????????????????????????????????????????????????? | | ?????????????????????????????????????????????????? | | ?????????????????????????????????????????????????? | | ?????????????????????????????????????????????????? | | ?????????????????#? ????????????????????????????? | | ??????????###????# ????????????????????????????? | | ?????????? ???## ????????????????????????????? | | ?????????? ???# #???????????????????????????? | | ?????????? ???# #######????????????????????? | | ?????????? ????# # ##???????????????????? | | ?????????? #### ##??????????????????? | | ?????????? ####???????????????? | | ?????????? ###?????????????? | | ??????????# #?????# @ ##????????????? | | ??????????# #?????## # #####????????? | | ??????????# #??????# %dd* =[ t"#????????? | | ??????????# #??????# *% ###u#????????? | | ??????????# #??????# # # ! # #?# #????????? | | ???######## #??????# # ##???# #????????? | | ???# #??????# ##### ######????# #########? | | ???# ###### #??????# #???# #???????### ## #? | | ???# #????# #??????# #???#=#??????## ## | | ???# #????# #??????# #???#*######## # | | ???# #????# ######## ##??# %%[ ## | | #### ##???# ##?######### ## < | | #???###### ### ####??????# ### # | | #????????# #?# ##?????## ##?# ## | | #????????# #?# #??????####??########? | | #????????# ### #????????????????????? | | #????????# ##????????????????????? | | #????????##### ##?????????????????????? | | #######????????????########??????????????????????? | | ?????????????????????????????????????????????????? | | ?????????????????????????????????????????????????? | | ?????????????????????????????????????????????????? | | | | | | | +----------------------------------------------------+ Best States ------------- Heat Dissipation 35 Energy Generation 10 Energy Capacity 250 Matter Stores 300 Matter Capacity 300 Sight Range 16 Terrain Scan Density 10 Armor Coverage 150 Evasion (%) 54 Recoil Reduction 2 Item Schematics ----------------- None Robot Schematics ------------------ None Fabricated ------------ Nothing Repaired ---------- Nothing Studied --------- None Alien Tech Used ----------------- None Achievements -------------- None Challenges ------------ None Game ------ Seed ChipDisruptionComputer Manual? 0 Play Time 00:27:00 Cumulative 74.0 hours Start 2026.04.08 @ 18:00:46 End 2026.04.08 @ 19:07:55 Sessions 1 Manual Loads 0 Difficulty Rogue Special Mode None Game No. 67 Rogue 57 Adventurer 9 Explorer 1 Win Type - Total 0 Types 0/0/0/0/0/0/0/0/0/0 Lore% 38 Gallery% 34 Achievement% 27 Wizard Run 0 Options --------- Layout 2 ASCII 0 Keyboard 0 Movement Mouse Keybinds 0 Fullscreen 1 Font 48/Terminus Map View 50x44 Zoom Use 0% Tactical HUD 1 Map Filters NONE Filters NONE Steam 1 RUN: 20159bec-050f-47b6-aece-4040bc371071